fUST/lending_fUST_20250928
["ID","MTS","AMOUNT","RATE_DAILY","PERIOD"]
[388079130,1759007445344,-755.85,0.00035616,9]
[388079131,1759007445354,-1676.0,0.00035616,9]
[388079132,1759007445363,-480.0,0.00035616,9]
[388079133,1759007445373,-480.0,0.00035616,9]
[388079134,1759007445383,-480.0,0.00035616,9]
[388079135,1759007445392,-480.0,0.00035616,9]
[388079136,1759007445401,-480.0,0.00035616,9]
[388079137,1759007445411,-480.0,0.00035616,9]
[388079138,1759007445421,-717.89,0.00035616,9]
[388079139,1759007445430,-480.0,0.00035616,9]
[388079140,1759007445440,-480.0,0.00035616,9]
[388079141,1759007445449,-2077.69,0.00035616,9]
[388079142,1759007445458,-782.8,0.00035616,9]
[388079143,1759007445467,-817.26,0.00035616,9]
[388079144,1759007445476,-480.0,0.00035616,9]
[388079145,1759007445485,-8550.61,0.00035616,9]
[388079146,1759007445495,-9115.22,0.00035616,9]
[388079147,1759007445505,-480.0,0.00035616,9]
[388079148,1759007445514,-481.5149009,0.00035616,9]
[388079149,1759007445523,-480.0,0.00035616,9]
[388079150,1759007445532,-480.0,0.00035616,9]
[388079151,1759007445542,-835.61,0.00035616,9]
[388079152,1759007445552,-3705.96,0.00035616,9]
[388079153,1759007445561,-1509.05,0.00035616,9]
[388079154,1759007445571,-480.0,0.00035616,9]
[388079155,1759007445580,-1861.79,0.00035616,9]
[388079156,1759007445590,-480.0,0.00035616,9]
[388079157,1759007445599,-480.0,0.00035616,9]
[388079158,1759007445608,-480.0,0.00035616,9]
[388079159,1759007445618,-480.0,0.00035616,9]
[388079160,1759007445627,-480.0,0.00035616,9]
[388079161,1759007445636,-494.27,0.00035616,9]
[388079162,1759007445646,-480.0,0.00035616,9]
[388079163,1759007445655,-884.97,0.00035616,9]
[388079164,1759007445664,-480.0,0.00035616,9]
[388079165,1759007445674,-2416.85,0.00035616,9]
[388079166,1759007445683,-678.29,0.00035616,9]
[388079167,1759007445692,-480.0,0.00035616,9]
[388079168,1759007445702,-847.78,0.00035616,9]
[388079169,1759007445712,-480.0,0.00035616,9]
[388079170,1759007445721,-480.0,0.00035616,9]
[388079171,1759007445731,-480.0,0.00035616,9]
[388079172,1759007445740,-953.45,0.00035616,9]
[388079173,1759007445750,-1331.28,0.00035616,9]
[388079174,1759007445759,-1103.53,0.00035616,9]
[388079175,1759007445768,-480.0,0.00035616,9]
[388079177,1759007445778,-3110.84,0.00035616,9]
[388079178,1759007445787,-480.0,0.00035616,9]
[388079179,1759007445796,-480.0,0.00035616,9]
[388079180,1759007445806,-482.64685791,0.00035616,9]
[388079181,1759007445815,-770.65,0.00035616,9]
[388079182,1759007445824,-1306.71,0.00035616,9]
[388079183,1759007445834,-480.0,0.00035616,9]
[388079184,1759007445844,-480.0,0.00035616,9]
[388079185,1759007445854,-508.21,0.00035616,9]
[388079186,1759007445864,-315.47956739,0.00035616,9]
[388079187,1759007445873,-480.0,0.00035616,9]
[388079188,1759007445883,-480.0,0.00035616,9]
[388079189,1759007445892,-1315.71,0.00035616,9]
[388079190,1759007445902,-480.0,0.00035616,9]
[388079191,1759007445911,-7535.16,0.00035616,3]
[388079192,1759007445920,-480.0,0.00035616,9]
[388079193,1759007445930,-2250.69,0.00035616,9]
[388079194,1759007445940,-500.0,0.00035616,9]
[388079195,1759007445950,-500.0,0.00035616,9]
[388079196,1759007445960,-2142.64,0.00035616,9]
[388079197,1759007445970,-500.0,0.00035616,9]
[388079198,1759007445980,-480.55,0.00035616,9]
[388079199,1759007445989,-500.0,0.00035616,9]
[388079200,1759007445999,-559.71,0.00035616,9]
[388079201,1759007446008,-480.0,0.00035616,9]
[388079202,1759007446017,-500.0,0.00035616,9]
[388079203,1759007446027,-500.0,0.00035616,9]
[388079204,1759007446036,-480.0,0.00035616,9]
[388079205,1759007446045,-500.0,0.00035616,9]
[388079206,1759007446055,-500.0,0.00035616,9]
[388079207,1759007446065,-500.0,0.00035616,9]
[388079208,1759007446074,-480.0,0.00035616,9]
[388079209,1759007446084,-500.0,0.00035616,9]
[388079210,1759007446093,-500.0,0.00035616,9]
[388079211,1759007446104,-500.0,0.00035616,9]
[388079212,1759007446113,-500.0,0.00035616,9]
[388079213,1759007446123,-481.48672431,0.00035616,9]
[388079214,1759007446132,-500.0,0.00035616,9]
[388079215,1759007446141,-500.0,0.00035616,9]
[388079216,1759007446151,-226.31611396,0.00035616,9]
[388079217,1759007446160,-480.0,0.00035616,9]
[388079218,1759007446170,-206.55366972,0.00035616,9]
[388079219,1759007446180,-1011.99,0.00035616,9]
[388079220,1759007446190,-480.0,0.00035616,9]
[388079221,1759007446199,-480.0,0.00035616,9]
[388079222,1759007446209,-480.0,0.00035616,9]
[388079223,1759007446219,-3116.07,0.00035616,9]
[388079224,1759007446228,-480.0,0.00035616,9]
[388079225,1759007446237,-480.0,0.00035616,9]
[388079226,1759007446247,-480.0,0.00035616,9]
[388079227,1759007446256,-2737.61,0.00035616,9]
[388079228,1759007446265,-480.0,0.00035616,9]
[388079229,1759007446275,-486.57,0.00035616,9]
[388079230,1759007446284,-480.0,0.00035616,9]
[388079231,1759007446294,-480.0,0.00035616,7]
[388079232,1759007446304,-1083.35,0.00035616,9]
[388079233,1759007446314,-480.0,0.00035616,9]
[388079234,1759007446324,-3810.75,0.00035616,9]
[388079235,1759007446334,-1059.32,0.00035616,9]
[388079236,1759007446343,-480.0,0.00035616,9]
[388079237,1759007446353,-480.0,0.00035616,9]
[388079238,1759007446365,-480.0,0.00035616,9]
[388079239,1759007446375,-5103.68,0.00035616,9]
[388079240,1759007446384,-480.0,0.00035616,9]
[388079241,1759007446393,-480.0,0.00035616,9]
[388079242,1759007446403,-734.38,0.00035616,9]
[388079243,1759007446412,-579.0,0.00035616,9]
[388079244,1759007446422,-480.0,0.00035616,9]
[388079245,1759007446431,-480.0,0.00035616,9]
[388079246,1759007446441,-999.81,0.00035616,9]
[388079247,1759007446451,-642.69,0.00035616,9]
[388079248,1759007446460,-480.0,0.00035616,9]
[388079249,1759007446470,-480.0,0.00035616,9]
[388079250,1759007446479,-1088.05,0.00035616,9]
[388079251,1759007446488,-480.0,0.00035616,9]
[388079252,1759007446497,-480.0,0.00035616,9]
[388079253,1759007446506,-480.0,0.00035616,9]
[388079254,1759007446516,-480.0,0.00035616,9]
[388079255,1759007446524,-480.0,0.00035616,9]
[388079256,1759007446534,-381.1955831,0.00035616,9]
[388079257,1759007446544,-430.699136,0.00035616,9]
[388079258,1759007446552,-1751.84,0.00035616,9]
[388079259,1759007446560,-875.42,0.00035616,9]
[388079260,1759007446569,-2722.97,0.00035616,9]
[388079261,1759007446581,-480.0,0.00035616,9]
[388079262,1759007446590,-480.0,0.00035616,9]
[388079263,1759007446600,-480.0,0.00035616,9]
[388079264,1759007446610,-2143.97,0.00035616,9]
[388079265,1759007446619,-700.36,0.00035616,9]
[388079266,1759007446628,-480.0,0.00035616,9]
[388079267,1759007446638,-480.0,0.00035616,9]
[388079268,1759007446647,-911.56,0.00035616,9]
[388079269,1759007446657,-480.0,0.00035616,9]
[388079270,1759007446666,-609.13,0.00035616,9]
[388079271,1759007446676,-480.0,0.00035616,9]
[388079272,1759007446685,-480.0,0.00035616,9]
[388079273,1759007446694,-4390.52,0.00035616,9]
[388079274,1759007446704,-898.75,0.00035616,9]
[388079275,1759007446714,-480.0,0.00035616,9]
[388079276,1759007446723,-480.0,0.00035616,9]
[388079277,1759007446732,-792.12,0.00035616,9]
[388079278,1759007446742,-480.0,0.00035616,9]
[388079279,1759007446751,-480.0,0.00035616,9]
[388079280,1759007446760,-3529.4,0.00035616,9]
[388079281,1759007446770,-668.92,0.00035616,9]
[388079282,1759007446779,-480.0,0.00035616,9]
[388079283,1759007446788,-828.92,0.00035616,9]
[388079284,1759007446798,-351.27094609,0.00035616,9]
[388079285,1759007446807,-480.0,0.00035616,9]
[388079286,1759007446817,-858.54,0.00035616,9]
[388079287,1759007446827,-480.0,0.00035616,9]
[388079288,1759007446836,-910.91,0.00035616,9]
[388079289,1759007446846,-760.03,0.00035616,9]
[388079290,1759007446855,-1804.13,0.00035616,9]
[388079291,1759007446864,-480.0,0.00035616,9]
[388079292,1759007446874,-480.0,0.00035616,9]
[388079293,1759007446884,-261.35,0.00035616,9]
[388079294,1759007446893,-480.0,0.00035616,9]
[388079295,1759007446903,-2470.97,0.00035616,9]
[388079296,1759007446912,-856.28,0.00035616,9]
[388079297,1759007446924,-480.0,0.00035616,9]
[388079298,1759007446936,-480.0,0.00035616,9]
[388079299,1759007446951,-1166.34,0.00035616,9]
[388079300,1759007446961,-500.0,0.00035616,9]
[388079301,1759007446971,-500.0,0.00035616,9]
[388079302,1759007446981,-500.0,0.00035616,9]
[388079303,1759007446991,-500.0,0.00035616,9]
[388079304,1759007447000,-500.0,0.00035616,9]
[388079305,1759007447010,-500.0,0.00035616,9]
[388079306,1759007447020,-500.0,0.00035616,9]
[388079307,1759007447029,-491.91765334,0.00035616,9]
[388079308,1759007447039,-500.0,0.00035616,9]
[388079309,1759007447048,-485.05698644,0.00035616,9]
[388079310,1759007447058,-500.0,0.00035616,9]
[388079311,1759007447067,-500.0,0.00035616,9]
[388079312,1759007447076,-1732.05,0.00035616,9]
[388079314,1759007447085,-500.0,0.00035616,9]
[388079315,1759007447095,-500.0,0.00035616,9]
[388079316,1759007447105,-480.0,0.00035616,9]
[388079317,1759007447114,-480.0,0.00035616,9]
[388079318,1759007447123,-500.0,0.00035616,9]
[388079320,1759007447132,-480.0,0.00035616,9]
[388079322,1759007447141,-305.23,0.00035616,9]
[388079323,1759007447151,-480.0,0.00035616,9]
[388079324,1759007447159,-9010.74,0.00035616,9]
[388079325,1759007447168,-480.0,0.00035616,9]
[388079326,1759007447177,-721.8,0.00035616,9]
[388079327,1759007447187,-480.0,0.00035616,9]
[388079328,1759007447196,-581.6,0.00035616,9]
[388079329,1759007447205,-480.0,0.00035616,9]
[388079330,1759007447215,-480.0,0.00035616,9]
[388079331,1759007447224,-1595.28,0.00035616,9]
[388079332,1759007447234,-623.34,0.00035616,9]
[388079333,1759007447244,-690.32,0.00035616,9]
[388079334,1759007447253,-2371.5,0.00035616,9]
[388079335,1759007447263,-1741.48,0.00035616,9]
[388079336,1759007447272,-1060.12,0.00035616,9]
[388079337,1759007447281,-480.0,0.00035616,9]
[388079338,1759007447290,-1582.96,0.00035616,9]
[388079339,1759007447300,-808.94,0.00035616,9]
[388079340,1759007447309,-878.22,0.00035616,9]
[388079341,1759007447319,-1125.8,0.00035616,9]
[388079342,1759007447328,-480.0,0.00035616,9]
[388079343,1759007447337,-480.0,0.00035616,2]
[388079344,1759007447346,-2406.05,0.00035616,9]
[388079345,1759007447356,-480.0,0.00035616,9]
[388079346,1759007447507,-8924.39,0.00035616,9]
[388079347,1759007447518,-1113.98,0.00035616,9]
[388079348,1759007447528,-2445.81,0.00035616,9]
[388079349,1759007447541,-480.0,0.00035616,9]
[388079350,1759007447551,-614.5,0.00035616,9]
[388079351,1759007447560,-480.0,0.00035616,9]
[388079352,1759007447570,-4853.83,0.00035616,9]
[388079353,1759007447579,-480.0,0.00035616,9]
[388079354,1759007447588,-691.21,0.00035616,9]
[388079355,1759007447597,-480.0,0.00035616,9]
[388079356,1759007447607,-720.51,0.00035616,9]
[388079357,1759007447616,-480.0,0.00035616,9]
[388079358,1759007447626,-745.51,0.00035616,9]
[388079359,1759007447636,-480.0,0.00035616,9]
[388079360,1759007447645,-982.71,0.00035616,9]
[388079361,1759007447654,-466.39228508,0.00035616,9]
[388079362,1759007447664,-589.91,0.00035616,9]
[388079363,1759007447673,-480.0,0.00035616,9]
[388079364,1759007447683,-579.85,0.00035616,9]
[388079365,1759007447693,-926.42,0.00035616,9]
[388079366,1759007447702,-1907.35,0.00035616,9]
[388079367,1759007447711,-480.0,0.00035616,9]
[388079368,1759007447721,-480.0,0.00035616,9]
[388079369,1759007447730,-480.0,0.00035616,9]
[388079370,1759007447739,-500.0,0.00035616,13]
[388079371,1759007447749,-980.51,0.00035616,9]
[388079372,1759007447758,-480.0,0.00035616,9]
[388079373,1759007447768,-1078.77,0.00035616,9]
[388079374,1759007447777,-3471.15,0.00035616,9]
[388079375,1759007447786,-480.0,0.00035616,9]
[388079376,1759007447796,-480.0,0.00035616,9]
[388079377,1759007447805,-480.0,0.00035616,9]
[388079378,1759007447815,-480.0,0.00035616,9]
[388079379,1759007447825,-480.0,0.00035616,9]
[388079380,1759007447834,-941.53,0.00035616,9]
[388079381,1759007447843,-480.0,0.00035616,9]
[388079382,1759007447852,-1218.38,0.00035616,9]
[388079383,1759007447861,-617.71,0.00035616,9]
[388079384,1759007447870,-750.7,0.00035616,9]
[388079385,1759007447879,-480.0,0.00035616,9]
[388079386,1759007447888,-1718.02,0.00035616,9]
[388079387,1759007447897,-883.34,0.00035616,9]
[388079388,1759007447906,-2959.9,0.00035616,9]
[388079389,1759007447915,-500.0,0.00035616,9]
[388079390,1759007447925,-500.0,0.00035616,9]
[388079391,1759007447934,-500.0,0.00035616,9]
[388079392,1759007447944,-500.0,0.00035616,9]
[388079393,1759007447953,-400.0,0.00035616,9]
[388079394,1759007447962,-2885.58,0.00035616,9]
[388079395,1759007447971,-941.92,0.00035616,9]
[388079396,1759007447980,-2169.92,0.00035616,9]
[388079397,1759007447988,-480.0,0.00035616,9]
[388079398,1759007447996,-480.0,0.00035616,9]
[388079399,1759007448004,-480.0,0.00035616,9]
[388079400,1759007448014,-928.73,0.00035616,9]
[388079401,1759007448023,-1384.0,0.00035616,9]
[388079402,1759007448031,-1386.91,0.00035616,9]
[388079403,1759007448040,-503.10094521,0.00035616,13]
[388079404,1759007448050,-480.0,0.00035616,9]
[388079405,1759007448059,-737.46,0.00035616,9]
[388079406,1759007448068,-480.0,0.00035616,9]
[388079407,1759007448078,-681.2,0.00035616,9]
[388079408,1759007448087,-1129.31,0.00035616,9]
[388079409,1759007448096,-480.0,0.00035616,9]
[388079410,1759007448105,-2735.99,0.00035616,9]
[388079411,1759007448115,-500.0,0.00035633,3]
[388079412,1759007448124,-500.0,0.00035639,30]
[388079413,1759007448133,-500.0,0.00035673,5]
[388079414,1759007448142,-626.0020052,0.00035673,5]
[388079415,1759007448152,-500.0,0.00035673,5]
[388079416,1759007448161,-500.0,0.00035673,5]
[388079417,1759007448171,-500.0,0.00035673,5]
[388079418,1759007448180,-500.0,0.00035673,5]
[388079419,1759007448191,-500.0,0.00035673,5]
[388079420,1759007448200,-500.75007155,0.00035673,5]
[388079421,1759007448209,-500.0,0.00035673,5]
[388079422,1759007448219,-500.0,0.00035673,5]
[388079423,1759007448228,-500.0,0.00035673,5]
[388079424,1759007448238,-575.25942439,0.00035673,5]
[388079425,1759007448247,-500.0,0.00035673,5]
[388079426,1759007448256,-500.0,0.00035673,5]
[388079427,1759007448266,-500.0,0.00035673,5]
[388079428,1759007448275,-500.0,0.00035673,5]
[388079429,1759007448285,-500.0,0.00035673,5]
[388079430,1759007448295,-500.0,0.00035673,5]
[388079431,1759007448305,-500.0,0.00035673,2]
[388079432,1759007448314,-500.0,0.00035673,5]
[388079433,1759007448323,-501.12478516,0.00035673,5]
[388079434,1759007448333,-400.0,0.00035673,5]
[388079435,1759007448343,-500.0,0.00035673,5]
[388079436,1759007448352,-500.0,0.00035673,5]
[388079437,1759007448361,-500.0,0.00035673,5]
[388079438,1759007448371,-500.0,0.00035673,5]
[388079439,1759007448380,-500.0,0.00035673,5]
[388079440,1759007448389,-500.0,0.00035673,5]
[388079441,1759007448399,-150.0,0.00035673,5]
[388079442,1759007448408,-500.0,0.00035673,5]
[388079443,1759007448417,-500.0,0.00035673,5]
[388079444,1759007448427,-212.02780329,0.00035673,5]
[388079445,1759007448437,-500.0,0.00035673,5]
[388079446,1759007448446,-529.50832457,0.00035673,5]
[388079447,1759007448456,-500.0,0.00035673,5]
[388079448,1759007448465,-500.0,0.00035673,5]
[388079449,1759007448475,-151.0,0.00035673,30]
[388079450,1759007448484,-151.0,0.00035673,30]
[388079451,1759007448494,-198.483229,0.00035673,30]
[388079452,1759007448503,-198.483229,0.00035673,30]
[388079453,1759007448512,-198.483229,0.00035673,30]
[388079454,1759007448521,-198.483229,0.00035673,30]
[388079455,1759007448535,-151.0,0.00035673,30]
[388079456,1759007448545,-151.0,0.00035673,30]
[388079457,1759007448554,-151.0,0.00035673,30]
[388079458,1759007448564,-151.0,0.00035673,30]
[388079459,1759007448575,-151.0,0.00035673,30]
[388079460,1759007448584,-151.0,0.00035673,30]
[388079461,1759007448594,-151.0,0.00035673,30]
[388079462,1759007448604,-166.1,0.00035673,30]
[388079463,1759007448615,-166.1,0.00035673,30]
[388079464,1759007448624,-151.0,0.00035673,30]
[388079465,1759007448633,-166.1,0.00035673,30]
[388079466,1759007448643,-166.1,0.00035673,30]
[388079467,1759007448652,-151.0,0.00035673,30]
[388079468,1759007448662,-151.0,0.00035673,30]
[388079469,1759007448671,-151.0,0.00035673,30]
[388079470,1759007448680,-151.0,0.00035673,30]
[388079471,1759007448690,-328.962149,0.00035673,15]
[388079472,1759007448699,-328.962149,0.00035673,15]
[388079473,1759007448709,-151.0,0.00035673,30]
[388079474,1759007448718,-328.962149,0.00035673,15]
[388079475,1759007448727,-328.962149,0.00035673,15]
[388079476,1759007448736,-151.0,0.00035673,30]
[388079477,1759007448746,-151.0,0.00035673,30]
[388079478,1759007448755,-151.0,0.00035673,30]
[388079479,1759007448764,-151.0,0.00035673,30]
[388079480,1759007448774,-151.0,0.00035673,30]
[388079481,1759007448784,-151.0,0.00035673,30]
[388079482,1759007448794,-165.62771,0.00035673,30]
[388079483,1759007448807,-375.871251,0.00035673,30]
[388079484,1759007448820,-151.0,0.00035673,30]
[388079485,1759007448830,-375.871251,0.00035673,30]
[388079486,1759007448839,-165.62771,0.00035673,30]
[388079487,1759007448849,-285.14180206,0.00035673,30]
[388079488,1759007448858,-375.871251,0.00035673,30]
[388079489,1759007448872,-165.62771,0.00035673,30]
[388079490,1759007448882,-165.62771,0.00035673,30]
[388079491,1759007448892,-375.871251,0.00035673,30]
[388079492,1759007448902,-153.921385,0.00035673,30]
[388079493,1759007448912,-151.0,0.00035673,30]
[388079494,1759007448922,-151.0,0.00035673,30]
[388079495,1759007448932,-151.0,0.00035673,30]
[388079496,1759007448942,-151.0,0.00035673,30]
[388079497,1759007448951,-151.0,0.00035673,30]
[388079498,1759007448961,-151.0,0.00035673,30]
[388079499,1759007448971,-151.0,0.00035673,30]
[388079500,1759007448982,-151.0,0.00035673,30]
[388079501,1759007448992,-175.833096,0.00035673,30]
[388079502,1759007449002,-151.0,0.00035673,30]
[388079503,1759007449011,-151.0,0.00035673,30]
[388079504,1759007449021,-151.0,0.00035673,30]
[388079505,1759007449031,-151.0,0.00035673,30]
[388079506,1759007449040,-151.0,0.00035673,30]
[388079507,1759007449050,-151.0,0.00035673,30]
[388079508,1759007449060,-151.0,0.00035673,30]
[388079509,1759007449070,-151.0,0.00035673,30]
[388079510,1759007449079,-151.0,0.00035673,30]
[388079511,1759007449089,-151.0,0.00035673,30]
[388079512,1759007449099,-151.0,0.00035673,30]
[388079513,1759007449108,-252.080815,0.00035673,30]
[388079514,1759007449118,-252.080815,0.00035673,30]
[388079515,1759007449127,-252.080815,0.00035673,30]
[388079516,1759007449137,-252.080815,0.00035673,30]
[388079517,1759007449147,-151.0,0.00035673,30]
[388079518,1759007449156,-1023.324495,0.00035673,30]
[388079519,1759007449166,-1023.324495,0.00035673,30]
[388079520,1759007449175,-1023.324495,0.00035673,30]
[388079521,1759007449184,-1023.324495,0.00035673,30]
[388079522,1759007449195,-151.0,0.00035673,30]
[388079523,1759007449205,-151.0,0.00035673,30]
[388079524,1759007449215,-151.0,0.00035673,30]
[388079525,1759007449224,-151.0,0.00035673,30]
[388079526,1759007449234,-151.0,0.00035673,30]
[388079527,1759007449244,-1660.09007793,0.00035675,2]
[388079528,1759007449253,-151.618247,0.00035679,30]
[388079529,1759007449263,-151.0,0.00035679,30]
[388079530,1759007449273,-297.659681,0.00035679,30]
[388079531,1759007449283,-151.0,0.00035679,30]
[388079532,1759007449292,-551.16824,0.00035679,30]
[388079533,1759007449301,-551.16824,0.00035679,30]
[388079534,1759007449311,-551.16824,0.00035679,30]
[388079535,1759007449321,-551.16824,0.00035679,30]
[388079536,1759007449330,-151.0,0.00035679,30]
[388079537,1759007449340,-151.0,0.00035679,30]
[388079538,1759007449349,-151.0,0.00035679,30]
[388079539,1759007449359,-170.446767,0.00035679,30]
[388079540,1759007449369,-151.0,0.0003569,30]
[388079541,1759007449379,-1575.67,0.000357,14]
[388079542,1759007449389,-151.0,0.00035703,2]
[388079543,1759007449399,-151.0,0.00035703,2]
[388079544,1759007449408,-500.0,0.0003571,30]
[388079545,1759007449418,-151.0,0.0003578,3]
[388079546,1759007449427,-151.0,0.0003578,3]
[388079547,1759007449437,-188.593737,0.0003579,30]
[388079548,1759007449447,-188.593737,0.0003579,30]
[388079549,1759007449457,-188.593737,0.0003579,30]
[388079550,1759007449466,-188.593737,0.0003579,30]
[388079551,1759007449476,-154.665594,0.0003579,30]
[388079552,1759007449488,-151.0,0.0003579,30]
[388079553,1759007449497,-205.294795,0.0003579,30]
[388079554,1759007449507,-151.0,0.0003579,30]
[388079555,1759007449516,-205.294795,0.0003579,30]
[388079556,1759007449526,-205.294795,0.0003579,30]
[388079557,1759007449536,-205.294795,0.0003579,30]
[388079558,1759007449546,-151.0,0.0003579,30]
[388079559,1759007449555,-151.0,0.0003579,30]
[388079560,1759007449564,-151.0,0.0003579,30]
[388079561,1759007449574,-151.0,0.0003579,30]
[388079562,1759007449583,-151.0,0.0003579,30]
[388079563,1759007449593,-151.0,0.0003579,30]
[388079564,1759007449603,-151.0,0.0003579,30]
[388079565,1759007449613,-214.723511,0.0003579,30]
[388079566,1759007449623,-214.723511,0.0003579,30]
[388079567,1759007449633,-214.723511,0.0003579,30]
[388079568,1759007449642,-214.723511,0.0003579,30]
[388079569,1759007449652,-151.0,0.0003579,30]
[388079570,1759007449662,-151.0,0.0003579,30]
[388079571,1759007449672,-151.0,0.0003579,30]
[388079572,1759007449682,-151.0,0.0003579,30]
[388079573,1759007449691,-151.0,0.0003579,30]
[388079574,1759007449701,-151.0,0.0003579,30]
[388079575,1759007449711,-151.0,0.0003579,30]
[388079576,1759007449721,-182.281064,0.0003579,30]
[388079577,1759007449886,-182.281064,0.0003579,30]
[388079578,1759007449896,-182.281064,0.0003579,30]
[388079579,1759007449906,-182.281064,0.0003579,30]
[388079580,1759007449916,-236.373266,0.0003579,30]
[388079581,1759007449926,-236.373266,0.0003579,30]
[388079582,1759007449935,-236.373266,0.0003579,30]
[388079583,1759007449945,-236.373266,0.0003579,30]
[388079584,1759007449954,-231.73042,0.0003579,30]
[388079585,1759007449964,-151.0,0.0003579,30]
[388079586,1759007449973,-151.0,0.0003579,30]
[388079587,1759007449982,-151.0,0.0003579,30]
[388079588,1759007449992,-151.0,0.0003579,30]
[388079589,1759007450002,-231.73042,0.0003579,30]
[388079590,1759007450011,-231.73042,0.0003579,30]
[388079591,1759007450021,-231.73042,0.0003579,30]
[388079592,1759007450030,-151.0,0.0003579,30]
[388079593,1759007450039,-151.0,0.0003579,30]
[388079594,1759007450048,-152.223131,0.0003579,30]
[388079595,1759007450058,-290.893564,0.0003579,30]
[388079596,1759007450068,-151.0,0.0003579,30]
[388079597,1759007450077,-290.893564,0.0003579,30]
[388079598,1759007450087,-151.0,0.0003579,30]
[388079599,1759007450097,-290.893564,0.0003579,30]
[388079600,1759007450106,-290.893564,0.0003579,30]
[388079601,1759007450116,-159.575235,0.0003579,30]
[388079602,1759007450126,-159.575235,0.0003579,30]
[388079603,1759007450135,-159.575235,0.0003579,30]
[388079604,1759007450145,-159.575235,0.0003579,30]
[388079605,1759007450155,-6571.72674327,0.0003579,2]
[388079606,1759007450164,-5529.13427943,0.0003579,2]
[388079607,1759007450174,-151.0,0.0003579,30]
[388079608,1759007450183,-151.0,0.0003579,30]
[388079609,1759007450193,-151.0,0.0003579,30]
[388079610,1759007450202,-151.0,0.0003579,30]
[388079611,1759007450212,-151.0,0.0003579,30]
[388079612,1759007450221,-151.0,0.0003579,30]
[388079613,1759007450230,-151.0,0.0003579,30]
[388079614,1759007450239,-151.0,0.0003579,30]
[388079615,1759007450249,-151.0,0.0003579,30]
[388079616,1759007450258,-151.0,0.0003579,30]
[388079617,1759007450267,-151.0,0.0003579,30]
[388079618,1759007450277,-151.0,0.0003579,30]
[388079619,1759007450287,-151.0,0.0003579,30]
[388079620,1759007450297,-151.0,0.0003579,30]
[388079621,1759007450307,-155.969556,0.0003579,30]
[388079622,1759007450326,-177.015729,0.0003579,30]
[388079623,1759007450336,-177.015729,0.0003579,30]
[388079624,1759007450346,-177.015729,0.0003579,30]
[388079625,1759007450356,-177.015729,0.0003579,30]
[388079626,1759007450366,-151.0,0.0003579,30]
[388079627,1759007450376,-151.0,0.0003579,30]
[388079628,1759007450386,-151.0,0.0003579,30]
[388079629,1759007450396,-151.0,0.0003579,30]
[388079630,1759007450406,-500.0,0.00035799,30]
[388079631,1759007450415,-160.0,0.000358,2]
[388079632,1759007450425,-1660.09007793,0.0003587,2]
[388079633,1759007450435,-503.61595425,0.00035873,5]